bitfinex/quotes_SOLUSD_20251128
["timestamp","ask_amount","ask_price","bid_price","bid_amount"]
[1764289367742,8.80994492,141.01,140.99,0.69]
[1764289368437,8.80994492,141.01,140.97,7.09362197]
[1764289368438,8.80994492,140.99,140.97,7.09362197]
[1764289368638,3.12,140.98,140.97,7.09362197]
[1764289369437,8.80994492,140.99,140.97,25.51789167]
[1764289369748,8.80994492,140.99,140.98,0.69]
[1764289372044,8.80994492,140.99,140.98,7.7832047]
[1764289374564,8.80994492,141.03,140.98,25.51621647]
[1764289374725,8.80994492,141.03,140.99,0.69]
[1764289374919,8.80994492,141.03,141.01,16.308864]
[1764289375364,8.80994492,141.03,141.02,0.69]
[1764289376147,8.80994492,141.03,141.01,16.998864]
[1764289376525,8.80994492,141.03,141.02,7.09119273]
[1764289377027,8.80994492,141.03,141.02,7.78119273]
[1764289380155,8.80994492,141.04,141.02,7.78119273]
[1764289386257,8.80994492,141.04,141.03,0.69]
[1764289386754,8.80994492,141.04,141.03,7.78068992]
[1764289387148,8.80994492,141.04,141.03,7.09068992]
[1764289388847,8.80994492,141.04,141.02,7.09119273]
[1764289389049,8.80994492,141.04,141.02,7.78119273]
[1764289390660,8.80994492,141.04,141.02,7.09119273]
[1764289390854,8.80994492,141.04,141.03,7.75068992]
[1764289392156,0.86376678,141.09,141.03,7.75068992]
[1764289392342,4.77497385,141.08,141.06,16.308864]
[1764289392545,8.80994492,141.1,141.06,16.308864]
[1764289392746,8.80994492,141.08,141.07,0.66]
[1764289393046,8.80994492,141.08,141.07,7.74867937]
[1764289393244,8.80994492,141.1,141.07,25.47037781]
[1764289393444,8.80994492,141.1,141.08,0.66]
[1764289394364,8.80994492,141.1,141.09,7.08767453]
[1764289394563,13.58014748,141.1,141.09,7.08767453]
[1764289395565,0.62,141.14,141.09,25.46686086]
[1764289395767,4.76795945,141.13,141.1,0.66]
[1764289395946,8.80994492,141.12,141.1,0.66]
[1764289396342,3.74,141.14,141.1,0.66]
[1764289396543,8.80994492,141.12,141.1,0.66]
[1764289397345,12.54994492,141.14,141.11,7.08666997]
[1764289397568,8.80994492,141.12,141.11,7.08666997]
[1764289398641,12.54994492,141.14,141.1,16.308864]
[1764289398841,8.80994492,141.12,141.1,16.308864]
[1764289399255,0.62,141.11,141.1,16.308864]
[1764289399465,0.62,141.12,141.1,16.308864]
[1764289399675,1.48376678,141.12,141.1,16.308864]
[1764289400451,9.42994492,141.11,141.05,17.72375753]
[1764289400658,8.80994492,141.09,141.05,18.44375753]
[1764289401011,8.80994492,141.09,141.06,0.72]
[1764289401647,8.80994492,141.09,141.07,7.08867937]
[1764289402176,8.80994492,141.09,141.07,7.80867937]
[1764289404469,8.80994492,141.07,141.05,23.39835972]
[1764289404671,8.80994492,141.07,141.05,24.11835972]
[1764289405848,0.62,141.07,141.05,23.39835972]
[1764289406067,9.42994492,141.09,141.05,24.11835972]
[1764289408773,0.62,141.08,141.05,23.39835972]
[1764289409074,8.80994492,141.07,141.02,0.72]
[1764289409258,3.12,141.06,141.0,7.09219858]
[1764289409590,3.74,141.06,141.01,0.72]
[1764289410665,8.80994492,141.04,141.02,7.09119273]
[1764289411470,9.42994492,141.04,141.02,7.09119273]
[1764289411869,8.80994492,141.04,141.01,7.09169562]
[1764289412069,8.80994492,141.04,141.01,7.81169562]
[1764289415869,8.80994492,141.04,141.02,0.72]
[1764289417870,8.80994492,141.04,141.02,7.81093737]
[1764289418177,8.80994492,141.04,141.02,7.09093737]
[1764289420273,8.80994492,141.04,141.01,7.81156444]
[1764289420662,9.42994492,141.04,141.01,7.09156444]
[1764289421063,10.2937117,141.04,141.01,7.09156444]
[1764289421361,8.80994492,141.04,141.01,7.80156444]
[1764289421979,8.57373998,141.05,141.01,7.80156444]
[1764289422183,8.80994492,141.04,141.02,0.71]
[1764289422994,11.92994492,141.03,141.02,0.71]
[1764289425492,3.12,141.03,141.02,0.71]
[1764289428099,3.12,141.03,141.01,7.80126105]
[1764289428265,3.12,141.03,141.02,0.71]
[1764289429196,3.12,141.03,141.0,24.82269503]
[1764289429368,3.12,141.03,141.01,0.71]
[1764289429695,8.80994492,141.01,140.99,23.40139816]
[1764289429888,8.80994492,141.01,141.0,0.71]
[1764289431296,8.80994492,141.01,141.0,7.80219858]
[1764289433592,8.80994492,141.02,141.0,7.80219858]
[1764289435573,8.80994492,141.02,141.0,7.09219858]
[1764289435778,11.92994492,141.06,141.01,0.71]
[1764289437086,11.92994492,141.06,141.03,16.308864]
[1764289437291,11.92994492,141.06,141.04,0.71]
[1764289437791,11.92994492,141.06,141.04,7.79994516]
[1764289438298,11.92994492,141.06,141.05,0.71]
[1764289439897,11.92994492,141.06,141.04,7.79994516]
[1764289440500,11.92994492,141.06,141.05,0.71]
[1764289441498,11.92994492,141.06,141.04,7.08994516]
[1764289441879,11.92994492,141.06,141.04,7.79994516]
[1764289446883,8.80994492,141.04,140.99,17.018864]
[1764289447099,8.80994492,141.02,141.0,0.71]
[1764289447403,8.80994492,141.02,141.0,17.018864]
[1764289448206,8.80994492,141.02,141.01,7.80169562]
[1764289450881,0.86376678,141.07,141.02,16.308864]
[1764289451095,3.12,141.08,141.04,16.308864]
[1764289451399,13.58814345,141.07,141.04,16.308864]
[1764289451603,8.80994492,141.07,141.05,0.67]
[1764289452211,8.80994492,141.07,141.06,16.308864]
[1764289452590,8.80994492,141.07,141.06,16.978864]
[1764289452987,3.12,141.08,141.06,24.0680459]
[1764289453305,11.92994492,141.08,141.07,0.67]
[1764289453535,8.80994492,141.08,141.07,0.67]
[1764289455185,8.80994492,141.08,141.07,7.75867937]
[1764289456282,8.80994492,141.07,141.06,23.39787162]
[1764289456486,8.80994492,141.07,141.06,16.308864]
[1764289456794,0.62,141.08,141.06,16.308864]
[1764289456994,1.48376678,141.08,141.06,23.39797592]
[1764289457406,1.48376678,141.08,141.05,7.08958792]
[1764289457596,0.62,141.07,141.04,7.09003808]
[1764289457792,8.80994492,141.05,141.04,7.09003808]
[1764289458304,8.80994492,141.05,141.03,23.3994881]
[1764289459418,8.80994492,141.05,141.03,24.0594881]
[1764289459810,8.80994492,141.05,141.03,16.308864]
[1764289460000,9.42994492,141.05,141.03,16.308864]
[1764289460323,8.80994492,141.05,141.03,23.39949348]
[1764289461622,8.80994492,141.05,141.03,24.05949348]
[1764289463704,8.80994492,141.05,141.03,7.09062948]
[1764289463904,9.42994492,141.05,141.03,7.09062948]
[1764289464211,8.80994492,141.05,141.03,7.09062948]
[1764289464415,8.80994492,141.05,141.03,7.75062948]
[1764289468932,8.80994492,141.05,141.03,0.66]
[1764289470032,8.80994492,141.05,141.04,7.09018718]
[1764289471633,8.80994492,141.05,141.04,7.75018718]
[1764289482740,9.42994492,141.05,141.03,7.09051716]
[1764289483322,8.80994492,141.05,141.03,7.09051716]
[1764289484437,8.80994492,141.05,141.02,17.72681375]
[1764289484638,8.80994492,141.05,141.04,0.68]
[1764289485637,8.80994492,141.05,141.04,7.77018718]
[1764289490846,3.12,141.07,141.04,7.77018718]
[1764289491076,3.98376678,141.07,141.04,7.77018718]
[1764289491363,4.60376678,141.07,141.04,7.77018718]
[1764289491942,1.48376678,141.07,141.04,7.77018718]
[1764289492549,4.60376678,141.07,141.04,7.77018718]
[1764289493651,0.86376678,141.07,141.05,0.68]
[1764289493941,16.70690884,141.1,141.06,16.308864]
[1764289494145,8.80994492,141.08,141.06,16.308864]
[1764289494342,8.80994492,141.08,141.07,0.68]
[1764289494650,13.58696592,141.08,141.07,0.68]
[1764289495037,4.777021,141.08,141.07,0.68]
[1764289495235,8.80994492,141.09,141.07,0.68]
[1764289496548,8.80994492,141.09,141.08,7.08817692]
[1764289496740,13.5865111,141.09,141.08,7.08817692]
[1764289498452,13.5865111,141.09,141.07,7.08867937]
[1764289498642,8.80994492,141.09,141.08,0.68]
[1764289498952,13.58635045,141.09,141.08,0.68]
[1764289500945,13.58635045,141.09,141.08,7.08817692]
[1764289501136,13.58635045,141.09,141.07,7.08845628]
[1764289501336,4.60376678,141.1,141.07,7.08845628]
[1764289501539,4.77735273,141.09,141.07,7.76845628]
[1764289501859,4.77735273,141.09,141.08,0.68]
[1764289501860,8.80994492,141.09,141.08,0.68]
[1764289502055,13.58725033,141.09,141.08,0.68]
[1764289503143,14.20725033,141.09,141.07,7.08845628]
[1764289503343,8.80994492,141.09,141.08,0.68]
[1764289503545,13.58646648,141.09,141.08,0.68]
[1764289503850,8.80994492,141.09,141.08,0.68]
[1764289504659,8.80994492,141.09,141.07,7.08845628]
[1764289504845,8.80994492,141.09,141.07,7.76845628]
[1764289506447,8.80994492,141.09,141.07,7.08845628]
[1764289506667,8.80994492,141.09,141.08,7.76817692]
[1764289510472,3.12,141.1,141.08,7.76817692]
[1764289510650,8.80994492,141.14,141.09,0.71]
[1764289510854,8.80994492,141.12,141.09,0.71]
[1764289511363,3.12,141.14,141.11,16.308864]
[1764289511578,1e-08,141.15,141.11,16.308864]
[1764289511874,1e-08,141.15,141.12,0.71]
[1764289512072,1e-08,141.15,141.14,7.08516366]
[1764289512469,1e-08,141.15,141.14,7.74516366]
[1764289515260,1e-08,141.15,141.14,7.08516366]
[1764289515652,1e-08,141.15,141.14,7.74516366]
[1764289527967,8.80994492,141.14,141.13,23.3943431]
[1764289528472,1e-08,141.15,141.13,7.0854791]
[1764289528668,8.80994492,141.14,141.12,7.0861678]
[1764289529089,8.80994492,141.14,141.12,7.7461678]
[1764289531290,8.80994492,141.14,141.12,7.0861678]
[1764289531473,1e-08,141.15,141.11,7.08653559]
[1764289531678,8.80994492,141.12,141.11,7.08653559]
[1764289532067,8.80994492,141.13,141.11,7.08653559]
[1764289532784,8.80994492,141.13,141.11,7.74653559]
[1764289533898,8.80994492,141.13,141.12,0.66]
[1764289534902,1e-08,141.15,141.12,0.66]
[1764289535673,8.80994492,141.14,141.13,7.08566569]
[1764289535877,8.80994492,141.14,141.12,7.0860171]
[1764289536293,8.80994492,141.14,141.12,7.7460171]
[1764289536889,8.80994492,141.14,141.12,7.0860171]
[1764289537079,9.42994492,141.14,141.12,7.0860171]
[1764289537699,9.42994492,141.14,141.11,7.08666997]
[1764289538004,0.62,141.14,141.11,7.74666997]
[1764289538987,3.74,141.14,141.11,7.74666997]
[1764289539779,4.60376678,141.14,141.11,7.08666997]
[1764289540001,4.60376678,141.14,141.11,7.74666997]
[1764289540180,3.98376678,141.14,141.11,7.74666997]
[1764289540501,3.98376678,141.14,141.12,0.68]
[1764289540502,3.12,141.14,141.12,0.68]
[1764289541404,3.12,141.14,141.12,7.76587304]
[1764289542303,8.80994493,141.15,141.13,0.68]
[1764289543621,8.80994493,141.15,141.14,7.08516366]
[1764289547407,8.80994493,141.15,141.13,0.68]
[1764289549807,8.80994493,141.15,141.14,7.08516366]
[1764289550293,8.80994493,141.15,141.14,7.76516366]
[1764289560522,1e-08,141.15,141.14,7.76516366]
[1764289565724,1e-08,141.15,141.14,10.88516366]
[1764289566021,1e-08,141.15,141.14,19.69510858]
[1764289571214,1e-08,141.15,141.14,29.67641458]
[1764289571419,1e-08,141.15,141.14,24.55641459]
[1764289571619,1e-08,141.15,141.14,19.69510858]
[1764289576304,1e-08,141.15,141.14,16.57510858]
[1764289576535,1e-08,141.15,141.14,19.69510858]
[1764289577943,1e-08,141.15,141.14,16.57510858]
[1764289580109,1e-08,141.15,141.14,15.89510858]
[1764289580308,1e-08,141.15,141.14,23.39402766]
[1764289582337,1e-08,141.15,141.13,7.08071891]
[1764289582638,8.80994492,141.14,141.13,16.308864]
[1764289584126,8.80994492,141.14,141.13,23.39452969]
[1764289586011,0.62,141.14,141.13,23.39452969]
[1764289587836,8.80994493,141.15,141.13,23.39452969]
[1764289588045,9.42994493,141.15,141.13,23.39452969]
[1764289588415,1e-08,141.15,141.13,23.39452969]
[1764289588621,9.42994492,141.14,141.13,23.39452969]
[1764289591542,9.42994492,141.14,141.13,26.77081091]
[1764289592216,9.42994492,141.14,141.13,19.68514522]
[1764289592543,8.80994492,141.13,141.12,3.37628122]
[1764289592751,9.42994492,141.13,141.12,3.37628122]
[1764289592937,9.42994492,141.13,141.12,26.77131302]
[1764289594748,9.42994492,141.13,141.12,25.55614729]
[1764289595539,8.80994492,141.13,141.12,25.55614729]
[1764289596171,8.80994492,141.14,141.12,26.27614729]
[1764289596324,8.80994492,141.14,141.13,2.88111549]
[1764289596646,8.80994493,141.15,141.13,2.16111549]
[1764289596822,8.80994493,141.15,141.13,2.88111549]
[1764289597017,8.80994493,141.15,141.14,2.16111549]
[1764289597843,9.42994493,141.15,141.14,2.16111549]
[1764289598221,9.42994493,141.15,141.14,9.24627915]
[1764289598728,8.80994493,141.15,141.14,9.24627915]
[1764289600747,8.80994493,141.15,141.13,7.08566569]
[1764289600952,8.80994493,141.15,141.14,2.16111549]
[1764289602243,9.42994493,141.15,141.13,9.24678118]
[1764289603736,8.80994493,141.15,141.13,9.24678118]
[1764289605760,8.80994493,141.15,141.13,9.93678118]
[1764289605933,8.80994493,141.15,141.13,9.24678118]
[1764289606643,1e-08,141.15,141.14,2.85111549]
[1764289608948,1e-08,141.15,141.14,26.24514315]
[1764289611556,8.80994492,141.22,141.14,52.76799723]
[1764289611854,9.42994492,141.22,141.2,2.16111549]
[1764289612534,9.42994492,141.21,141.2,2.16111549]
[1764289612735,1.48376678,141.21,141.17,7.08332067]
[1764289612944,0.62,141.2,141.17,23.39218467]
[1764289613131,8.80994492,141.18,141.17,23.39218467]
[1764289613448,9.42994492,141.18,141.16,7.08414299]
[1764289613659,0.86376678,141.19,141.16,7.08414299]
[1764289613660,9.42994492,141.17,141.16,7.08414299]
[1764289613836,9.42994492,141.17,141.15,9.24564571]
[1764289616638,8.80994492,141.17,141.15,9.24564571]
[1764289616844,9.42994492,141.17,141.15,9.24564571]
[1764289617046,9.42994492,141.17,141.15,7.08453022]
[1764289617945,8.80994492,141.17,141.15,7.08453022]
[1764289619059,8.80994492,141.17,141.15,9.93564571]
[1764289619554,8.80994492,141.17,141.15,9.24564571]
[1764289620062,8.80994492,141.17,141.15,7.08453022]
[1764289620742,8.80994492,141.17,141.15,9.24564571]
[1764289623962,8.80994492,141.17,141.15,9.93564571]
[1764289624163,8.80994492,141.17,141.16,2.16111549]
[1764289626478,9.42994492,141.17,141.15,7.08453022]
[1764289626642,8.80994492,141.16,141.15,7.08453022]
[1764289626848,9.42994492,141.16,141.14,23.39383875]
[1764289628184,8.80994492,141.16,141.14,23.39383875]
[1764289628346,0.62,141.15,141.14,23.39383875]
[1764289629066,9.42994492,141.16,141.14,23.39383875]
[1764289630571,9.42994492,141.16,141.14,7.08497475]
[1764289631075,8.80994492,141.16,141.13,9.2466836]
[1764289631371,8.80994492,141.14,141.13,7.08556811]
[1764289631574,8.80994492,141.14,141.12,2.16111549]
[1764289631767,8.80994492,141.12,141.09,2.16111549]
[1764289631971,8.80994492,141.12,141.08,7.08817692]
[1764289632172,8.80994492,141.1,141.08,23.39704092]
[1764289632967,8.80994492,141.1,141.08,24.10704092]
[1764289634680,8.80994492,141.13,141.08,43.27859871]
[1764289634882,8.80994492,141.13,141.12,7.0861678]
[1764289637690,0.86376678,141.17,141.12,27.67270279]
[1764289637888,8.80994492,141.16,141.14,2.16111549]
[1764289638385,8.80994492,141.16,141.15,2.87111549]
[1764289638889,8.80994492,141.16,141.15,9.95577719]
[1764289645090,8.80994492,141.16,141.15,9.24577719]
[1764289647291,8.80994492,141.16,141.15,9.95577719]
[1764289649998,8.80994492,141.17,141.15,27.66743145]
[1764289650201,3.12,141.18,141.16,2.87111549]
[1764289650386,11.92994492,141.18,141.17,2.16111549]
[1764289651986,11.92994492,141.18,141.17,9.24477349]
[1764289652889,12.54994492,141.18,141.15,2.16111549]
[1764289653196,0.86376678,141.17,141.15,2.16111549]
[1764289653499,0.86376678,141.17,141.15,2.87111549]
[1764289653700,0.86376678,141.17,141.15,2.16111549]
[1764289653996,0.86376678,141.17,141.15,9.24538081]
[1764289655005,0.86376678,141.17,141.16,2.16111549]
[1764289656393,1.48376678,141.17,141.16,2.16111549]
[1764289656596,1.48376678,141.17,141.16,3.37524027]
[1764289657897,8.80994492,141.16,141.14,3.37524027]
[1764289658100,12.80518519,141.16,141.13,16.308864]
[1764289658299,12.80518519,141.16,141.09,24.80277651]
[1764289658300,8.80994492,141.14,141.1,3.37524027]
[1764289658505,8.80994492,141.12,141.09,3.37524027]
[1764289658684,3.12,141.11,141.08,19.68410427]
[1764289658883,3.74,141.11,141.09,3.37524027]
[1764289661488,9.42994492,141.1,141.06,3.37524027]
[1764289661683,8.80994492,141.08,141.06,3.37524027]
[1764289661895,8.80994492,141.06,141.05,3.37524027]
[1764289663004,8.80994492,141.06,141.05,26.77378877]
[1764289663748,8.80994492,141.06,141.04,10.46530877]
[1764289664188,8.80994492,141.06,141.05,3.37524027]
[1764289664787,8.80994492,141.06,141.05,10.46492477]
[1764289671389,3.12,141.07,141.05,10.46492477]
[1764289671619,11.92994492,141.07,141.06,4.08524027]
[1764289672489,11.92994492,141.07,141.06,11.17442217]
[1764289673616,3.12,141.07,141.06,11.17442217]
[1764289675224,0.86376678,141.09,141.06,11.17442217]
[1764289675399,0.86376678,141.09,141.07,4.08524027]
[1764289675601,11.92994492,141.1,141.07,4.08524027]
[1764289675808,1.48376678,141.09,141.05,0.71]
[1764289676011,1.48376678,141.09,141.06,3.37524027]
[1764289676525,1.48376678,141.09,141.06,4.08524027]
[1764289677307,1.48376678,141.09,141.07,7.08867937]
[1764289677625,1.48376678,141.09,141.06,11.17423435]
[1764289678019,0.86376678,141.09,141.06,11.17423435]
[1764289678222,1.48376678,141.09,141.06,11.17423435]
[1764289679805,1.48376678,141.09,141.07,3.37524027]
[1764289681843,1.48376678,141.09,141.07,10.463722]
[1764289682139,0.86376678,141.09,141.08,0.71]
[1764289682431,12.7937117,141.1,141.08,3.37524027]
[1764289682608,13.4137117,141.1,141.08,3.37524027]
[1764289682804,12.54994492,141.1,141.08,3.37524027]
[1764289683431,12.54994492,141.1,141.07,7.08848173]
[1764289683710,0.86376678,141.09,141.08,3.37524027]
[1764289685330,0.86376678,141.09,141.07,11.173722]
[1764289685331,8.80994492,141.08,141.07,11.173722]
[1764289685819,8.80994492,141.08,141.07,10.463722]
[1764289686934,0.62,141.08,141.04,18.43518261]
[1764289687118,3.12,141.07,141.06,3.37524027]
[1764289687313,12.54994492,141.07,141.05,3.37524027]
[1764289687726,8.80994492,141.06,141.04,3.37524027]
[1764289687923,9.42994492,141.06,141.0,0.81]
[1764289688137,8.80994492,141.04,141.0,0.1]
[1764289688340,0.62,141.05,141.0,0.1]
[1764289688341,8.80994492,141.02,141.0,0.1]
[1764289688645,8.80994492,141.02,141.0,3.47524027]
[1764289689010,8.80994492,141.02,141.0,0.1]
[1764289689415,8.80994492,141.02,141.01,4.08524027]
[1764289689616,3.12,141.03,141.01,11.17693589]
[1764289689822,3.12,141.03,141.02,4.08524027]
[1764289693640,3.12,141.03,141.02,11.176433]
[1764289695316,10.2937117,141.07,141.02,11.176433]
[1764289695317,3.12,141.06,141.02,11.176433]
[1764289695518,11.92994492,141.06,141.05,3.37524027]
[1764289696028,11.92994492,141.06,141.04,3.37524027]
[1764289696412,8.80994492,141.05,141.02,7.0910717]
[1764289696617,9.6737117,141.05,141.04,3.37524027]
[1764289696817,9.6737117,141.05,141.03,3.37524027]
[1764289696818,10.2937117,141.05,141.03,3.37524027]
[1764289697923,9.6737117,141.05,141.04,3.37524027]
[1764289698823,3.12,141.06,141.04,4.09524027]
[1764289698824,3.98376678,141.06,141.04,4.09524027]
[1764289699025,3.12,141.06,141.05,3.37524027]
[1764289699938,3.12,141.06,141.04,7.81013045]
[1764289700244,0.86376678,141.05,141.04,3.37524027]
[1764289701821,3.98376678,141.06,141.04,3.37524027]
[1764289703442,3.98376678,141.06,141.05,3.37524027]
[1764289704028,3.98376678,141.06,141.04,4.09524027]
[1764289704849,3.98376678,141.06,141.04,11.18533131]
[1764289705146,3.98376678,141.06,141.02,7.09081338]
[1764289705346,8.75608787,141.06,141.04,4.09524027]
[1764289705650,17.56603279,141.06,141.05,3.37524027]
[1764289705822,11.92994492,141.06,141.05,4.09524027]
[1764289707046,11.92994492,141.06,141.05,11.18492477]
[1764289708648,3.12,141.06,141.05,11.18492477]
[1764289712050,3.98376678,141.09,141.05,28.90913604]
[1764289712251,12.7937117,141.09,141.08,3.37524027]
[1764289712428,17.56572848,141.09,141.08,3.37524027]
[1764289715752,17.56572848,141.09,141.07,10.46376545]
[1764289715953,12.7937117,141.09,141.07,10.46376545]
[1764289716146,13.4137117,141.09,141.07,10.46376545]
[1764289716541,13.4137117,141.09,141.07,9.25156587]
[1764289721657,9.42994492,141.08,141.05,16.308864]
[1764289721858,8.80994492,141.06,141.04,2.16304069]
[1764289722043,3.12,141.05,141.03,2.16304069]
[1764289722249,3.74,141.05,141.03,2.16304069]
[1764289722436,3.12,141.05,141.03,2.16304069]
[1764289722637,3.12,141.05,141.03,9.25370645]
[1764289723160,3.12,141.05,141.03,9.91370645]
[1764289723456,11.92994492,141.05,141.04,2.16304069]
[1764289723663,11.92994492,141.05,141.04,2.82304069]
[1764289725348,11.92994492,141.05,141.04,9.91322787]
[1764289729050,3.12,141.05,141.04,9.91322787]
[1764289731862,11.92994492,141.08,141.04,27.63869582]
[1764289732057,8.80994492,141.08,141.07,18.47190469]
[1764289732261,3.12,141.09,141.07,18.47190469]
[1764289732472,8.80994492,141.09,141.08,2.82304069]
[1764289733852,8.80994492,141.09,141.08,26.22008161]
[1764289736283,3.12,141.1,141.08,26.22008161]
[1764289736454,11.92994492,141.1,141.09,2.82304069]
[1764289736774,3.12,141.1,141.09,2.82304069]
[1764289736954,11.92994492,141.13,141.09,2.82304069]
[1764289737272,11.92994492,141.13,141.11,2.16304069]
[1764289738053,11.92994492,141.13,141.11,9.24951643]
[1764289738259,11.92994492,141.13,141.12,2.16304069]
[1764289738452,11.92994492,141.13,141.12,2.82304069]
[1764289740172,11.92994492,141.13,141.12,9.90920849]
[1764289740986,0.67,141.19,141.15,16.308864]
[1764289741189,0.67,141.18,141.17,2.16304069]
[1764289741489,1.53376678,141.18,141.17,2.16304069]
[1764289741659,0.67,141.18,141.17,2.16304069]
[1764289742660,3.98376678,141.19,141.17,9.24669869]
[1764289742866,8.80994492,141.18,141.17,9.24669869]
[1764289743557,8.80994492,141.18,141.17,9.90669869]
[1764289744861,8.80994492,141.18,141.17,9.24669869]
[1764289747778,8.80994492,141.18,141.17,2.16304069]
[1764289747779,9.47994492,141.18,141.17,2.16304069]
[1764289748665,9.47994492,141.18,141.16,7.08397073]
[1764289748966,8.80994492,141.18,141.17,2.16304069]
[1764289753694,9.46994492,141.18,141.16,7.08397073]
[1764289753992,9.46994492,141.17,141.16,2.16304069]
[1764289755290,8.80994492,141.17,141.16,2.16304069]
[1764289755890,8.80994492,141.17,141.16,9.2472005]
[1764289767787,8.80994492,141.17,141.16,9.9172005]
[1764289769914,8.80994492,141.16,141.12,17.71498981]
[1764289770084,8.80994492,141.16,141.13,2.16304069]
[1764289770085,8.80994492,141.14,141.13,2.16304069]
[1764289770488,8.80994492,141.14,141.12,0.67]
[1764289770790,8.80994492,141.14,141.12,19.14190469]
[1764289771123,8.80994492,141.14,141.12,26.22803346]
[1764289771503,8.80994492,141.14,141.13,0.67]
[1764289772018,8.80994492,141.14,141.13,7.75566569]
[1764289772596,9.46994492,141.14,141.12,9.24904598]
[1764289774615,8.80994492,141.14,141.12,9.91904598]
[1764289774920,3.12,141.15,141.13,2.83304069]
[1764289775102,8.80994492,141.15,141.14,2.16304069]
[1764289775303,8.80994492,141.15,141.14,2.83304069]
[1764289775505,3.12,141.17,141.14,19.14190469]
[1764289775705,8.80994492,141.17,141.16,2.16304069]
[1764289775918,8.80994492,141.2,141.16,9.9172005]
[1764289776216,8.80994492,141.2,141.19,2.16304069]
[1764289776820,8.80994492,141.2,141.19,3.37365782]
[1764289777402,14.23088595,141.2,141.17,3.37365782]
[1764289777600,9.46994492,141.2,141.17,3.37365782]
[1764289777800,9.46994492,141.2,141.17,10.4569215]
[1764289778002,9.46994492,141.2,141.17,11.1269215]
[1764289779619,8.80994492,141.18,141.17,11.1269215]
[1764289779794,8.80994492,141.18,141.17,10.4569215]
[1764289781516,8.80994492,141.2,141.16,10.45751026]
[1764289781823,0.68,141.18,141.16,10.45751026]
[1764289783717,9.48994492,141.18,141.15,10.45829526]
[1764289783924,9.48994492,141.18,141.15,11.15829526]
[1764289784321,3.98376678,141.17,141.15,10.45829526]
[1764289784508,4.66376678,141.17,141.15,10.45829526]
[1764289784709,3.8,141.17,141.15,10.45829526]
[1764289785120,3.8,141.17,141.15,11.15829526]
[1764289785326,3.12,141.17,141.15,11.15829526]
[1764289786926,8.80994492,141.16,141.15,11.15829526]
[1764289788702,8.80994492,141.16,141.15,10.45829526]
[1764289789424,8.80994492,141.16,141.15,11.15829526]
[1764289791522,8.80994492,141.16,141.15,10.45829526]
[1764289791728,8.80994492,141.16,141.15,3.37365782]
[1764289791912,14.2645218,141.16,141.14,26.76767349]
[1764289792113,9.48994492,141.16,141.15,3.37365782]
[1764289792725,14.26451882,141.16,141.14,26.76767349]
[1764289792915,13.58477924,141.15,141.14,26.76767349]
[1764289793430,8.80994492,141.15,141.14,26.76767349]
[1764289794732,8.80994492,141.15,141.14,27.46767349]
[1764289794924,8.80994492,141.15,141.14,24.09401567]
[1764289795235,8.80994492,141.15,141.14,27.46767349]
[1764289799024,8.80994492,141.15,141.14,26.76767349]
[1764289800547,3.12,141.17,141.14,44.48058265]
[1764289800721,11.92994492,141.17,141.16,3.37365782]
[1764289803136,12.60994492,141.17,141.16,3.37365782]
[1764289804441,12.60994492,141.17,141.16,10.45781763]
[1764289804637,11.92994492,141.17,141.16,10.45781763]
[1764289805535,11.92994492,141.17,141.16,11.15781763]
[1764289806399,8.80994492,141.17,141.16,11.15781763]
[1764289807230,3.12,141.18,141.16,11.15781763]
[1764289807437,11.92994492,141.18,141.17,4.07365782]
[1764289808444,11.92994492,141.18,141.17,27.46617982]
[1764289808944,11.92994492,141.18,141.17,26.76617982]
[1764289809122,11.92994492,141.18,141.17,27.46617982]
[1764289816651,11.92994492,141.21,141.17,45.17532482]
[1764289816840,11.92994492,141.21,141.2,3.37365782]
[1764289817148,16.6993772,141.21,141.2,3.37365782]
[1764289817349,16.6993772,141.21,141.2,10.45581079]
[1764289817729,17.3793772,141.21,141.16,34.01861121]
[1764289818053,8.80994492,141.19,141.18,19.68252182]
[1764289818640,9.48994492,141.19,141.18,16.308864]
[1764289819430,8.80994492,141.19,141.18,26.76567807]
[1764289820143,11.92994492,141.21,141.18,27.43567807]
[1764289820354,4.77115289,141.2,141.19,3.37365782]
[1764289821228,4.77115289,141.2,141.19,10.45631239]
[1764289821435,8.80994492,141.19,141.17,19.68252182]
[1764289821745,9.48994492,141.19,141.17,19.68252182]
[1764289822140,9.48994492,141.19,141.17,3.37365782]
[1764289822452,9.48994492,141.19,141.17,10.45711999]
[1764289823758,9.48994492,141.19,141.17,7.08346217]
[1764289823954,9.48994492,141.19,141.17,10.45711999]
[1764289824760,9.48994492,141.19,141.17,11.12711999]
[1764289827167,9.48994492,141.19,141.18,3.37365782]